[Event "2nd Tal Memorial IM 2019"]
[Site "Anogia"]
[Date "2019.09.17"]
[Round "7.5"]
[White "Sidiropoulos, Nikolaos"]
[Black "Peng, Li Min"]
[Result "0-1"]
[ECO "A67"]
[WhiteElo "2160"]
[BlackElo "2465"]
[Annotator "ChessBase"]
[PlyCount "83"]
[EventDate "2019.09.11"]
[EventType "tourn"]
[EventCountry "GRE"]
[SourceTitle "playchess.com"]
[Source "ChessBase"]
[SourceQuality "1"]
[TimeControl "40/5400+30:1800+30"]

1. d4 {[%emt 0:06:19]} e6 {[%emt 0:00:00]} 2. c4 {[%emt 0:00:06]} Nf6 {[%emt 0:00:00]} 3. Nc3 {[%emt 0:00:13]} c5 {[%emt 0:00:10]} 4. d5 {[%emt 0:00:08]} exd5 {[%emt 0:00:05]} 5. cxd5 {[%emt 0:00:04]} d6 {[%emt 0:00:03]} 6. e4 {[%emt 0:00:07]} g6 {[%emt 0:00:05]} 7. f4 {[%emt 0:00:22]} Bg7 {[%emt 0:00:05]} 8. Bb5+ {[%emt 0:00:08]} Nfd7 {[%emt 0:00:04]} 9. Bd3 {[%emt 0:00:43]} O-O {[%emt 0:00:24]} 10. Nf3 {[%emt 0:00:08]} Na6 {[%emt 0:01:18]} 11. a3 {[%emt 0:01:05]} Nc7 {[%emt 0:00:19]} 12. O-O {[%emt 0:00:34]} Rb8 {[%emt 0:01:27]} 13. a4 {[%emt 0:03:28]} Re8 {[%emt 0:07:17]} 14. Nd2 {[%emt 0:01:47]} Nf6 {[%emt 0:02:01]} 15. Nc4 {[%emt 0:01:20]} Ng4 {[%emt 0:01:38]} 16. e5 {[%emt 0:08:42]} dxe5 {[%emt 0:02:47]} 17. d6 {[%emt 0:02:03]} Na6 {[%emt 0:05:21]} 18. Be2 {[%emt 0:28:17]} h5 {[%emt 0:04:13]} 19. h3 {[%emt 0:19:07]} exf4 {[%emt 0:01:55]} 20. Bxf4 {[%emt 0:02:42]} Bd4+ {[%emt 0:04:28]} 21. Kh1 {[%emt 0:01:29]} Qh4 {[%emt 0:02:45]} 22. Bxg4 {[%emt 0:06:59]} hxg4 {[%emt 0:03:52]} 23. Qd2 {[%emt 0:03:41]} gxh3 {[%emt 0:06:25]} 24. g3 {[%emt 0:00:08]} Qh5 {[%emt 0:00:04]} 25. Rae1 {[%emt 0:01:48]} Bd7 {[%emt 0:00:36]} 26. Kh2 {[%emt 0:00:32]} Nb4 {[%emt 0:04:19]} 27. a5 {[%emt 0:05:44]} Rxe1 {[%emt 0:03:03]} 28. Rxe1 {[%emt 0:01:47]} Nc6 {[%emt 0:00:06]} 29. Ne4 {[%emt 0:02:10]} Re8 {[%emt 0:06:49]} 30. Qxd4 {[%emt 0:02:00]} Nxd4 {[%emt 0:00:02]} 31. Nf6+ {[%emt 0:00:07]} Kg7 {[%emt 0:00:04]} 32. Nxh5+ {[%emt 0:00:18]} gxh5 {[%emt 0:00:01]} 33. Rxe8 {[%emt 0:00:28]} Nf3+ {[%emt 0:00:02]} 34. Kh1 {[%emt 0:00:05]} Bxe8 {[%emt 0:00:02]} 35. Be3 {[%emt 0:02:15]} Bb5 {[%emt 0:00:27]} 36. b3 {[%emt 0:00:09]} b6 {[%emt 0:00:11]} 37. axb6 {[%emt 0:00:34]} axb6 {[%emt 0:00:01]} 38. d7 {[%emt 0:00:14]} Bxd7 {[%emt 0:00:01]} 39. Nxb6 {[%emt 0:00:03]} Bc6 {[%emt 0:09:06]} 40. Bxc5 {[%emt 0:00:00]} Nd2+ {[%emt 0:00:00]} 41. Kg1 {[%emt 0:02:16]} Nf1 {[%emt 0:01:32] Kh2 Nd2 Kg1 Bg2} 42. Bd6 0-1

[Event "2nd Tal Memorial IM 2019"]
[Site "Anogia"]
[Date "2019.09.18"]
[Round "8.4"]
[White "Lekic, Dusan"]
[Black "Grieve, Harry"]
[Result "1/2-1/2"]
[ECO "A84"]
[WhiteElo "2331"]
[BlackElo "2277"]
[Annotator "NA"]
[PlyCount "35"]
[EventDate "2019.09.11"]
[EventType "tourn"]
[EventCountry "GRE"]
[SourceTitle "playchess.com"]
[Source "ChessBase"]
[SourceQuality "1"]
[TimeControl "40/5400+30:1800+30"]

1. d4 {[%emt 0:00:00]} d5 {[%emt 0:00:00]} 2. c4 {[%emt 0:00:00]} e6 {[%emt 0:00:00]} 3. Nf3 {[%emt 0:00:00]} c6 {[%emt 0:00:00]} 4. e3 {[%emt 0:00:49]} Bd6 {[%emt 0:00:11]} 5. Bd3 {[%emt 0:00:20]} f5 {[%emt 0:00:08]} 6. O-O {[%emt 0:00:34]} Nf6 {[%emt 0:00:13]} 7. b3 {[%emt 0:00:24]} Qe7 {[%emt 0:00:11]} 8. Bb2 {[%emt 0:00:20]} O-O {[%emt 0:00:09]} 9. Nc3 {[%emt 0:01:29]} b6 {[%emt 0:01:19]} 10. Ne5 {[%emt 0:05:47]} Ne4 {[%emt 0:14:05]} 11. Ne2 {[%emt 0:01:53]} Bb7 {[%emt 0:01:05]} 12. Rc1 {[%emt 0:04:42]} Nd7 {[%emt 0:03:34]} 13. cxd5 {[%emt 0:06:19]} cxd5 {[%emt 0:01:15]} 14. f3 {[%emt 0:00:53]} Nec5 {[%emt 0:01:29]} 15. Bb1 {[%emt 0:06:52]} Rac8 {[%emt 0:03:37]} 16. b4 {[%emt 0:05:00]} Na6 {[%emt 0:04:23]} 17. a3 {[%emt 0:02:21]} Nab8 {[%emt 0:05:12]} 18. Qd3 {[%emt 0:09:40]} 1/2-1/2

[Event "2nd Tal Memorial IM 2019"]
[Site "Anogia"]
[Date "2019.09.18"]
[Round "8.5"]
[White "Bogdanov, Egor"]
[Black "Sokolovsky, Yahli"]
[Result "1-0"]
[ECO "B94"]
[WhiteElo "2422"]
[BlackElo "2239"]
[Annotator "NA"]
[PlyCount "69"]
[EventDate "2019.09.11"]
[EventType "tourn"]
[EventCountry "GRE"]
[SourceTitle "playchess.com"]
[Source "ChessBase"]
[SourceQuality "1"]
[TimeControl "40/5400+30:1800+30"]

1. e4 {[%emt 0:02:35]} c5 {[%emt 0:00:00]} 2. Nf3 {[%emt 0:00:14]} d6 {[%emt 0:00:06]} 3. d4 {[%emt 0:00:05]} cxd4 {[%emt 0:00:17]} 4. Nxd4 {[%emt 0:00:02]} Nf6 {[%emt 0:00:12]} 5. Nc3 {[%emt 0:00:03]} a6 {[%emt 0:00:17]} 6. Bg5 {[%emt 0:00:03]} Nbd7 {[%emt 0:00:47]} 7. f4 {[%emt 0:02:19]} Qc7 {[%emt 0:00:32]} 8. Qd2 {[%emt 0:09:20]} h6 {[%emt 0:10:32]} 9. Bh4 {[%emt 0:00:06]} e5 {[%emt 0:02:18]} 10. Nf5 {[%emt 0:02:39]} exf4 {[%emt 0:21:55]} 11. O-O-O {[%emt 0:00:17]} g5 {[%emt 0:03:28]} 12. Bf2 {[%emt 0:00:18]} b5 {[%emt 0:12:26]} 13. Qd4 {[%emt 0:09:06]} Rg8 {[%emt 0:10:12]} 14. a4 {[%emt 0:04:40]} b4 {[%emt 0:09:27]} 15. Qxb4 {[%emt 0:06:20]} d5 {[%emt 0:02:53]} 16. Qd4 {[%emt 0:00:27]} Bc5 {[%emt 0:01:10]} 17. Nxd5 {[%emt 0:01:17]} Nxd5 {[%emt 0:04:01]} 18. Qxd5 {[%emt 0:00:06]} Bb7 {[%emt 0:01:03]} 19. Qxd7+ {[%emt 0:02:14]} Qxd7 {[%emt 0:00:08]} 20. Rxd7 {[%emt 0:00:02]} Kxd7 {[%emt 0:01:32]} 21. Bxc5 {[%emt 0:00:11]} Bxe4 {[%emt 0:05:15]} 22. Nxh6 {[%emt 0:00:17]} Rgc8 {[%emt 0:02:09]} 23. b4 {[%emt 0:00:08]} a5 {[%emt 0:01:46]} 24. Bb5+ {[%emt 0:00:23]} Ke6 {[%emt 0:00:25]} 25. Bc4+ {[%emt 0:00:25]} Kf6 {[%emt 0:00:08]} 26. Re1 {[%emt 0:06:53]} axb4 {[%emt 0:05:43]} 27. Bd4+ {[%emt 0:00:54]} Kg6 {[%emt 0:00:07]} 28. Bxf7+ {[%emt 0:04:57]} Kxh6 {[%emt 0:00:02]} 29. Rxe4 {[%emt 0:00:01]} Rxa4 {[%emt 0:00:50]} 30. Re6+ {[%emt 0:00:31]} Kh7 {[%emt 0:00:01]} 31. Re7 {[%emt 0:00:50]} Kh6 {[%emt 0:00:41]} 32. Be6 {[%emt 0:00:26]} Rc6 {[%emt 0:02:08]} 33. Bd7 {[%emt 0:01:25]} Rxc2+ {[%emt 0:00:19]} 34. Kxc2 {[%emt 0:00:04]} b3+ {[%emt 0:00:03]} 35. Kd3 {[%emt 0:00:23]} 1-0

[Event "2nd Tal Memorial IM 2019"]
[Site "Anogia"]
[Date "2019.09.19"]
[Round "9.4"]
[White "Sidiropoulos, Nikolaos"]
[Black "Katopodis, Dimitrios"]
[Result "0-1"]
[ECO "D41"]
[WhiteElo "2160"]
[BlackElo "2265"]
[Annotator "ChessBase"]
[PlyCount "74"]
[EventDate "2019.09.11"]
[EventType "tourn"]
[EventCountry "GRE"]
[SourceTitle "playchess.com"]
[Source "ChessBase"]
[SourceQuality "1"]
[TimeControl "40/5400+30:1800+30"]

1. d4 {[%emt 0:05:22]} Nf6 {[%emt 0:00:00]} 2. c4 {[%emt 0:00:06]} e6 {[%emt 0:01:04]} 3. Nc3 {[%emt 0:00:08]} d5 {[%emt 0:03:19]} 4. cxd5 {[%emt 0:00:21]} Nxd5 {[%emt 0:00:12]} 5. e4 {[%emt 0:00:09]} Nxc3 {[%emt 0:00:05]} 6. bxc3 {[%emt 0:00:05]} c5 {[%emt 0:00:06]} 7. Nf3 {[%emt 0:00:06]} cxd4 {[%emt 0:00:04]} 8. cxd4 {[%emt 0:00:05]} Bb4+ {[%emt 0:00:04]} 9. Bd2 {[%emt 0:00:07]} Bxd2+ {[%emt 0:00:08]} 10. Qxd2 {[%emt 0:00:05]} O-O {[%emt 0:00:08]} 11. Bc4 {[%emt 0:06:23]} Nc6 {[%emt 0:00:35]} 12. O-O {[%emt 0:00:28]} b6 {[%emt 0:00:08]} 13. Rac1 {[%emt 0:05:50]} Na5 {[%emt 0:00:56]} 14. Rfd1 {[%emt 0:13:00]} Bb7 {[%emt 0:02:06]} 15. d5 {[%emt 0:04:02]} Nxc4 {[%emt 0:02:13]} 16. Rxc4 {[%emt 0:04:18]} exd5 {[%emt 0:00:26]} 17. exd5 {[%emt 0:00:24]} Qd6 {[%emt 0:00:17]} 18. Qg5 {[%emt 0:13:15]} h6 {[%emt 0:09:09]} 19. Qh5 {[%emt 0:00:52]} Rad8 {[%emt 0:00:57]} 20. Nh4 {[%emt 0:03:00]} Qf6 {[%emt 0:02:11]} 21. h3 {[%emt 0:03:21]} Rfe8 {[%emt 0:03:17]} 22. Nf3 {[%emt 0:12:09]} Rd7 {[%emt 0:05:47]} 23. Rcd4 {[%emt 0:10:43]} Red8 {[%emt 0:01:59]} 24. R1d3 {[%emt 0:02:27]} Rd6 {[%emt 0:05:30]} 25. a3 {[%emt 0:08:28]} Qg6 {[%emt 0:05:15]} 26. Qxg6 {[%emt 0:01:53]} fxg6 {[%emt 0:01:16]} 27. Ne5 {[%emt 0:03:18]} g5 {[%emt 0:02:15]} 28. Nc4 {[%emt 0:02:20]} Rxd5 {[%emt 0:00:19]} 29. Rxd5 {[%emt 0:00:02]} Rxd5 {[%emt 0:00:11]} 30. Re3 {[%emt 0:00:22]} Ba6 {[%emt 0:02:58]} 31. Ne5 {[%emt 0:00:16]} Bb5 {[%emt 0:00:51]} 32. Ng6 {[%emt 0:00:44]} Rd6 {[%emt 0:04:11]} 33. Ne7+ {[%emt 0:00:14]} Kf7 {[%emt 0:00:08]} 34. Re5 {[%emt 0:01:25]} Bd3 {[%emt 0:03:24]} 35. Nd5 {[%emt 0:01:10]} Re6 {[%emt 0:00:55]} 36. f4 {[%emt 0:00:11]} Rxe5 {[%emt 0:00:21]} 37. fxe5 {[%emt 0:00:06]} Ke6 {[%emt 0:00:11]} 0-1